fUST/lending_fUST_20250803
["ID","MTS","AMOUNT","RATE_DAILY","PERIOD"]
[377003544,1754200246260,-200.0,0.00028143,10]
[377003545,1754200246270,-200.0,0.00028143,10]
[377003546,1754200246279,-200.0,0.00028143,10]
[377003547,1754200246288,-200.0,0.00028143,10]
[377003548,1754200246297,-200.0,0.00028143,10]
[377003549,1754200246306,-200.0,0.00028143,10]
[377003550,1754200246316,-200.0,0.00028143,10]
[377003551,1754200246325,-200.0,0.00028143,10]
[377003552,1754200246334,-200.0,0.00028143,10]
[377003553,1754200246343,-200.0,0.00028143,10]
[377003554,1754200246353,-200.0,0.00028143,10]
[377003555,1754200246362,-200.0,0.00028143,10]
[377003556,1754200246371,-200.0,0.00028143,10]
[377003557,1754200246381,-200.0,0.00028143,10]
[377003558,1754200246391,-200.0,0.00028143,10]
[377003559,1754200246400,-200.0,0.00028143,10]
[377003565,1754200246517,-200.0,0.00028143,10]
[377003566,1754200246528,-200.0,0.00028143,10]
[377003567,1754200246538,-200.0,0.00028143,10]
[377003568,1754200246547,-200.0,0.00028143,10]
[377003569,1754200246556,-200.0,0.00028143,10]
[377003570,1754200246565,-200.0,0.00028143,10]
[377003571,1754200246575,-200.0,0.00028143,10]
[377003572,1754200246584,-200.0,0.00028143,10]
[377003573,1754200246594,-200.0,0.00028143,10]
[377003574,1754200246603,-200.0,0.00028143,10]
[377003575,1754200246613,-200.0,0.00028143,10]
[377003576,1754200246622,-200.0,0.00028143,10]
[377003577,1754200246632,-262.579659,0.00028143,10]
[377003578,1754200246643,-500.0,0.00028143,5]
[377003579,1754200246652,-333.5,0.00028143,15]
[377003580,1754200246662,-552.01,0.00028148,10]
[377003581,1754200246671,-500.0,0.00028148,10]
[377003582,1754200246680,-738.06,0.00028148,10]
[377003583,1754200246690,-578.18,0.00028149,10]
[377003584,1754200246700,-578.18,0.00028149,10]
[377003585,1754200246709,-578.18,0.00028149,10]
[377003587,1754200246719,-578.18,0.00028149,10]
[377003589,1754200246728,-578.18,0.00028149,10]
[377003591,1754200246738,-578.18,0.00028149,10]
[377003593,1754200246747,-578.18,0.00028149,10]
[377003595,1754200246757,-578.18,0.00028149,10]
[377003597,1754200246766,-578.18,0.00028149,10]
[377003599,1754200246775,-578.18,0.00028149,10]
[377003600,1754200246785,-578.18,0.00028149,10]
[377003602,1754200246795,-578.29,0.00028149,10]
[377003604,1754200246804,-343.12167998,0.0002815,2]
[377003606,1754200246813,-208.317273,0.0002815,7]
[377003608,1754200246823,-151.413033,0.0002815,7]
[377003610,1754200246833,-152.879369,0.0002815,7]
[377003612,1754200246843,-151.0,0.0002815,7]
[377003614,1754200246853,-151.0,0.0002815,7]
[377003616,1754200246862,-151.0,0.0002815,7]
[377003618,1754200246872,-272.905718,0.0002815,7]
[377003620,1754200246883,-151.0,0.0002815,7]
[377003623,1754200246894,-151.0,0.0002815,7]
[377003625,1754200246910,-154.373387,0.0002815,7]
[377003626,1754200246924,-154.373387,0.0002815,7]
[377003628,1754200246942,-154.373387,0.0002815,7]
[377003630,1754200246951,-154.373387,0.0002815,7]
[377003632,1754200246961,-154.373387,0.0002815,7]
[377003634,1754200246970,-154.373387,0.0002815,7]
[377003637,1754200246983,-154.373387,0.0002815,7]
[377003638,1754200246993,-154.373387,0.0002815,7]
[377003641,1754200247004,-154.373387,0.0002815,7]
[377003642,1754200247015,-154.373387,0.0002815,7]
[377003644,1754200247026,-154.373387,0.0002815,7]
[377003646,1754200247037,-154.373387,0.0002815,7]
[377003648,1754200247050,-154.373387,0.0002815,7]
[377003649,1754200247064,-154.373387,0.0002815,7]
[377003650,1754200247074,-552.01,0.0002815,10]
[377003651,1754200247083,-552.01,0.0002815,10]
[377003652,1754200247094,-552.01,0.0002815,10]
[377003653,1754200247104,-552.01,0.0002815,10]
[377003654,1754200247115,-552.01,0.0002815,10]
[377003655,1754200247124,-552.01,0.0002815,10]
[377003656,1754200247133,-552.01,0.0002815,10]
[377003657,1754200247143,-552.01,0.0002815,10]
[377003658,1754200247153,-552.01,0.0002815,10]
[377003659,1754200247163,-552.01,0.0002815,10]
[377003660,1754200247172,-552.02,0.0002815,10]
[377003661,1754200247183,-500.0,0.0002815,10]
[377003662,1754200247192,-500.0,0.0002815,10]
[377003663,1754200247202,-500.0,0.0002815,10]
[377003664,1754200247213,-500.0,0.0002815,10]
[377003665,1754200247223,-183.41228127,0.0002815,10]
[377003666,1754200247233,-508.0,0.0002815,120]
[377003667,1754200247242,-738.06,0.0002815,10]
[377003668,1754200247252,-738.06,0.0002815,10]
[377003669,1754200247262,-738.06,0.0002815,10]
[377003670,1754200247272,-738.06,0.0002815,10]
[377003671,1754200247282,-738.06,0.0002815,10]
[377003672,1754200247293,-738.06,0.0002815,10]
[377003673,1754200247305,-738.06,0.0002815,10]
[377003674,1754200247315,-738.06,0.0002815,10]
[377003675,1754200247325,-738.06,0.0002815,10]
[377003676,1754200247336,-738.14086326,0.0002815,10]
[377003677,1754200247346,-1343.41860462,0.00028151,2]
[377003678,1754200247358,-100180.37286067,0.00028151,2]
[377003679,1754200247367,-27661.4417046,0.00028151,20]
[377003680,1754200247381,-2768.61096307,0.00028151,20]
[377003681,1754200247399,-40220.47531085,0.00028151,20]
[377003682,1754200247412,-8354.71807501,0.00028151,20]
[377003683,1754200247424,-524.52159139,0.00028151,20]
[377003687,1754200779934,179.76630381,0.00022359,2]
[377003688,1754200828096,2671.52,0.00023061,2]
[377003689,1754200892389,667.88,0.00023061,2]
[377003690,1754200951914,158.201792,0.00013699,2]
[377003691,1754200952334,158.201792,0.00020951,2]
[377003693,1754200987652,17969.3441003,0.00028165,30]
[377003694,1754201137115,-160.0,0.00024138,2]
[377003695,1754201137142,-1104.80099066,0.00024139,2]
[377003696,1754201137166,-364.05647901,0.00024383,2]
[377003698,1754201204096,-187.36391696,0.00024138,2]
[377003699,1754201254106,-68.92134797,0.00024138,2]
[377003700,1754201254128,-160.0,0.00024138,2]
[377003701,1754201254151,-1423.22247452,0.00024139,2]
[377003872,1754201431989,-276.26089417,0.00023897,2]
[377003875,1754201432001,-135.94352099,0.00024383,2]
[377003878,1754201432011,-1000.0,0.00025124,2]
[377003881,1754201432021,-300.0,0.000257,2]
[377003883,1754201432031,-393.39874876,0.000257,2]
[377003885,1754201432042,-493.52358549,0.000257,2]
[377003887,1754201432054,-313.07766575,0.000257,2]
[377003889,1754201432063,-241.0,0.000257,2]
[377003891,1754201432073,-409.94272783,0.00025701,7]
[377003893,1754201432085,-50.05727217,0.00025701,7]
[377003895,1754201432094,-460.0,0.00025701,7]
[377003897,1754201432104,-287.54272719,0.00025701,7]
[377003899,1754201432123,-172.45727281,0.00025701,7]
[377003900,1754201432132,-421.33646926,0.00025701,7]
[377003901,1754201432144,-38.66353074,0.00025701,7]
[377003902,1754201432154,-460.0,0.00025701,7]
[377003903,1754201432164,-283.40377868,0.00025701,2]
[377003904,1754201432174,-171.3,0.00026125,2]
[377003905,1754201432184,-167.54348933,0.00026539,2]
[377003907,1754201432196,-24732.45651067,0.00026539,2]
[377003909,1754201432206,-172.656,0.00026575,13]
[377003910,1754201432215,-474.72445925,0.00026575,2]
[377003911,1754201432224,-160.0,0.00026674,2]
[377003912,1754201432234,-160.0,0.00026674,2]
[377003913,1754201432243,-841.87402298,0.00026674,2]
[377003914,1754201432253,-527.12062288,0.00026674,2]
[377003915,1754201432262,-12649.34751639,0.00026674,2]
[377003916,1754201432272,-501.08741739,0.00026973,2]
[377003917,1754201432282,-500.0,0.00026973,2]
[377003918,1754201432292,-501.63191676,0.00026973,2]
[377003919,1754201432301,-606.97164166,0.00026973,2]
[377003920,1754201432311,-523.39542411,0.00026973,2]
[377003921,1754201432321,-500.0,0.00026973,2]
[377003922,1754201432330,-500.0,0.00026973,2]
[377003923,1754201432339,-151.0,0.00026974,2]
[377003924,1754201432349,-250.0,0.00026974,2]
[377003925,1754201432359,-250.0,0.00026974,2]
[377003926,1754201432368,-250.0,0.00026974,2]
[377003927,1754201432378,-250.0,0.00026974,2]
[377003928,1754201432387,-250.0,0.00026974,2]
[377003929,1754201432397,-250.0,0.00026974,2]
[377003930,1754201432406,-250.0,0.00026974,2]
[377003931,1754201432415,-250.0,0.00026974,2]
[377003932,1754201432425,-250.0,0.00026974,2]
[377003933,1754201432434,-250.0,0.00026974,2]
[377003934,1754201432444,-250.0,0.00026974,2]
[377003935,1754201432453,-250.0,0.00026974,2]
[377003936,1754201432463,-868.85,0.0002698,10]
[377003937,1754201432473,-724.04,0.0002698,10]
[377003938,1754201432484,-200.0,0.00026985,15]
[377003939,1754201432495,-300.0,0.00026985,15]
[377003940,1754201432505,-100000.0,0.0002699,2]
[377003941,1754201432514,-160.0,0.00027,3]
[377003942,1754201432523,-168.17756401,0.00027178,2]
[377003943,1754201432534,-151.0,0.00027211,7]
[377003944,1754201432549,-227.98088705,0.00027282,2]
[377003945,1754201432558,-178.19727757,0.00027306,2]
[377003946,1754201432568,-151.0,0.00027315,7]
[377003947,1754201432578,-161.1003375,0.00027397,2]
[377003948,1754201432587,-500.0,0.00027397,5]
[377003949,1754201432597,-151.0,0.0002742,7]
[377003950,1754201432607,-1000.0,0.00027521,5]
[377003951,1754201432617,-500.0,0.00027521,5]
[377003952,1754201432812,-1000.0,0.00027521,5]
[377003953,1754201432821,-151.0,0.00027524,7]
[377003954,1754201432831,-151.0,0.00027629,7]
[377003955,1754201432841,-151.0,0.00027733,7]
[377003956,1754201432850,-420.0,0.00027822,2]
[377003957,1754201432860,-11089.72402581,0.00027835,2]
[377003958,1754201432870,-151.0,0.00027838,7]
[377003959,1754201432879,-781.41367237,0.00027844,2]
[377003960,1754201432888,-1795.9434997,0.00027845,2]
[377003961,1754201432898,-3898.86258776,0.00027845,2]
[377003962,1754201432907,-3898.86258773,0.00027902,2]
[377003963,1754201432916,-120507.80262118,0.00027935,2]
[377003964,1754201432930,-603.03914031,0.00027935,2]
[377003966,1754201434594,9000.4,0.00028187,90]
[377003993,1754201437918,-481.18,0.00024139,2]
[377003995,1754201437928,-481.18,0.00024836,2]
[377003997,1754201437938,-42366.93725251,0.00027935,2]
[377003999,1754201437948,-809.69403264,0.00027935,2]
[377004001,1754201437957,-210.37,0.00027935,3]
[377004003,1754201437966,-631.15,0.00027935,3]
[377004005,1754201437976,-985.66,0.00027935,10]
[377004007,1754201437986,-151.0,0.00027942,7]
[377004009,1754201437996,-158.309,0.00027944,2]
[377004011,1754201438009,-240.18517599,0.00027944,2]
[377004013,1754201438019,-690.75,0.00027944,2]
[377004015,1754201438029,-1343.41860462,0.00027945,2]
[377004017,1754201438039,-301.8929053,0.00027945,2]
[377004019,1754201438049,-460.0,0.00027945,10]
[377004021,1754201438059,-464.06084467,0.00027945,10]
[377004023,1754201438068,-497.69208017,0.00027945,10]
[377004025,1754201438079,-465.24223806,0.00027945,10]
[377004027,1754201438096,-460.0,0.00027945,10]
[377004029,1754201438106,-460.0,0.00027945,10]
[377004031,1754201438115,-460.0,0.00027945,10]
[377004032,1754201438125,-460.0,0.00027945,10]
[377004034,1754201438135,-465.7211225,0.00027945,10]
[377004036,1754201438144,-460.0,0.00027945,10]
[377004038,1754201438153,-327.77308421,0.00027945,10]
[377004040,1754201438163,-460.0,0.00027945,10]
[377004042,1754201438172,-461.54502376,0.00027945,10]
[377004044,1754201438181,-334.93163496,0.00027945,10]
[377004046,1754201438191,-460.0,0.00027945,10]
[377004048,1754201438200,-460.0,0.00027945,10]
[377004050,1754201438210,-462.53034912,0.00027945,10]
[377004052,1754201438220,-460.0,0.00027945,10]
[377004054,1754201438229,-460.0,0.00027945,10]
[377004056,1754201438239,-462.10902671,0.00027945,10]
[377004058,1754201438249,-460.0,0.00027945,10]
[377004060,1754201438259,-472.20251986,0.00027945,10]
[377004062,1754201438269,-460.0,0.00027945,10]
[377004064,1754201438280,-460.0,0.00027945,2]
[377004066,1754201438289,-590.13098003,0.00027945,10]
[377004068,1754201438299,-462.90571002,0.00027945,10]
[377004070,1754201438308,-464.66782119,0.00027945,10]
[377004072,1754201438317,-463.65289089,0.00027945,10]
[377004074,1754201438327,-460.0,0.00027945,10]
[377004076,1754201438336,-521.05512666,0.00027945,10]
[377004078,1754201438346,-460.0,0.00027945,10]
[377004080,1754201438357,-460.0,0.00027945,10]
[377004081,1754201438366,-466.21724185,0.00027945,10]
[377004083,1754201438376,-460.0,0.00027945,10]
[377004085,1754201438386,-463.33680247,0.00027945,10]
[377004087,1754201438398,-460.0,0.00027945,10]
[377004089,1754201438408,-460.0,0.00027945,10]
[377004091,1754201438417,-462.07453533,0.00027945,10]
[377004093,1754201438426,-460.0,0.00027945,10]
[377004095,1754201438436,-460.0,0.00027945,10]
[377004097,1754201438446,-460.0,0.00027945,10]
[377004099,1754201438455,-460.0,0.00027945,10]
[377004101,1754201438465,-460.0,0.00027945,10]
[377004103,1754201438474,-460.0,0.00027945,10]
[377004105,1754201438483,-460.0,0.00027945,10]
[377004107,1754201438493,-205.69738328,0.00027945,10]
[377004109,1754201438502,-461.73469689,0.00027945,10]
[377004111,1754201438513,-472.83720018,0.00027945,10]
[377004113,1754201438523,-460.99492799,0.00027945,10]
[377004115,1754201438532,-460.0,0.00027945,10]
[377004117,1754201438542,-466.51689631,0.00027945,10]
[377004119,1754201438551,-460.0,0.00027945,10]
[377004121,1754201438561,-737.86,0.00027945,10]
[377004123,1754201438574,-737.86,0.00027945,10]
[377004125,1754201438583,-737.86,0.00027945,10]
[377004127,1754201438593,-737.86,0.00027945,10]
[377004129,1754201438603,-737.86,0.00027945,10]
[377004131,1754201438611,-737.86,0.00027945,10]
[377004133,1754201438621,-460.0,0.00027945,10]
[377004135,1754201438630,-460.0,0.00027945,10]
[377004137,1754201438640,-737.86,0.00027945,10]
[377004139,1754201438649,-460.0,0.00027945,10]
[377004141,1754201438658,-282.48693469,0.00027945,10]
[377004143,1754201438667,-460.0,0.00027945,10]
[377004145,1754201438677,-460.0,0.00027945,10]
[377004147,1754201438686,-460.0,0.00027945,10]
[377004148,1754201438695,-285.42317843,0.00027945,10]
[377004150,1754201438704,-466.4624509,0.00027945,10]
[377004152,1754201438714,-465.68864382,0.00027945,10]
[377004154,1754201438723,-460.0,0.00027945,10]
[377004157,1754201438734,-464.66838179,0.00027945,10]
[377004158,1754201438743,-460.0,0.00027945,10]
[377004160,1754201438753,-460.84142559,0.00027945,10]
[377004162,1754201438762,-460.0,0.00027945,10]
[377004164,1754201438771,-441.43295799,0.00027945,10]
[377004167,1754201438782,-460.0,0.00027945,10]
[377004168,1754201438791,-460.0,0.00027945,10]
[377004170,1754201438801,-460.0,0.00027945,10]
[377004172,1754201438810,-460.0,0.00027945,10]
[377004174,1754201438819,-460.0,0.00027945,10]
[377004176,1754201438829,-462.81028468,0.00027945,10]
[377004178,1754201438838,-460.0,0.00027945,10]
[377004180,1754201438847,-460.0,0.00027945,10]
[377004182,1754201438857,-460.0,0.00027945,10]
[377004184,1754201438867,-460.0,0.00027945,10]
[377004186,1754201438876,-460.0,0.00027945,10]
[377004188,1754201438885,-460.0,0.00027945,10]
[377004190,1754201438895,-460.0,0.00027945,10]
[377004192,1754201438905,-460.0,0.00027945,10]
[377004194,1754201438915,-460.0,0.00027945,10]
[377004196,1754201438924,-460.0,0.00027945,10]
[377004198,1754201438934,-460.0,0.00027945,10]
[377004200,1754201438944,-460.0,0.00027945,10]
[377004202,1754201438953,-460.0,0.00027945,10]
[377004204,1754201438962,-461.63091925,0.00027945,10]
[377004206,1754201438972,-460.0,0.00027945,10]
[377004208,1754201438981,-460.0,0.00027945,10]
[377004210,1754201438991,-461.49933486,0.00027945,10]
[377004212,1754201439002,-460.0,0.00027945,10]
[377004214,1754201439013,-460.0,0.00027945,10]
[377004216,1754201439023,-460.0,0.00027945,10]
[377004218,1754201439033,-460.0,0.00027945,10]
[377004220,1754201439043,-460.0,0.00027945,10]
[377004222,1754201439052,-460.0,0.00027945,10]
[377004224,1754201439061,-460.0,0.00027945,10]
[377004226,1754201439071,-460.0,0.00027945,10]
[377004228,1754201439082,-578.49049965,0.00027945,10]
[377004230,1754201439092,-463.38177373,0.00027945,10]
[377004232,1754201439102,-460.0,0.00027945,10]
[377004234,1754201439111,-460.0,0.00027945,10]
[377004235,1754201439121,-460.0,0.00027945,10]
[377004237,1754201439130,-460.0,0.00027945,10]
[377004239,1754201439140,-460.0,0.00027945,10]
[377004241,1754201439149,-465.27041288,0.00027945,10]
[377004243,1754201439160,-463.01115891,0.00027945,10]
[377004245,1754201439170,-509.57850863,0.00027945,10]
[377004247,1754201439180,-462.21232529,0.00027945,10]
[377004249,1754201439190,-467.76844764,0.00027945,10]
[377004251,1754201439199,-460.65957534,0.00027945,10]
[377004253,1754201439209,-460.0,0.00027945,10]
[377004254,1754201439218,-460.0,0.00027945,10]
[377004255,1754201439227,-158.07,0.00027945,10]
[377004256,1754201439237,-460.0,0.00027945,10]
[377004257,1754201439246,-460.0,0.00027945,10]
[377004258,1754201439256,-460.0,0.00027945,10]
[377004259,1754201439265,-462.04418565,0.00027945,10]
[377004260,1754201439275,-477.35374876,0.00027945,10]
[377004261,1754201439284,-460.0,0.00027945,10]
[377004262,1754201439294,-460.67618889,0.00027945,10]
[377004263,1754201439303,-460.0,0.00027945,10]
[377004264,1754201439312,-460.0,0.00027945,10]
[377004265,1754201439322,-460.0,0.00027945,10]
[377004266,1754201439332,-465.04992067,0.00027945,10]
[377004267,1754201439341,-460.0,0.00027945,10]
[377004268,1754201439352,-460.0,0.00027945,10]
[377004269,1754201439362,-460.0,0.00027945,10]
[377004270,1754201439373,-460.0,0.00027945,10]
[377004271,1754201439383,-460.0,0.00027945,10]
[377004272,1754201439392,-460.0,0.00027945,10]
[377004273,1754201439402,-461.6578887,0.00027945,10]
[377004274,1754201439411,-460.0,0.00027945,10]
[377004275,1754201439422,-463.20225261,0.00027945,10]
[377004276,1754201439432,-465.53779386,0.00027945,10]
[377004277,1754201439443,-460.0,0.00027945,10]
[377004278,1754201439452,-460.0,0.00027945,10]
[377004279,1754201439462,-460.0,0.00027945,10]
[377004280,1754201439473,-460.0,0.00027945,10]
[377004281,1754201439482,-460.0,0.00027945,10]
[377004282,1754201439492,-460.0,0.00027945,10]
[377004283,1754201439501,-460.0,0.00027945,10]
[377004296,1754201439511,-460.0,0.00027945,10]
[377004297,1754201439647,-464.29494719,0.00027945,10]
[377004298,1754201439657,-152.53420452,0.00027945,10]
[377004299,1754201439666,-460.0,0.00027945,10]
[377004300,1754201439676,-460.0,0.00027945,10]
[377004301,1754201439685,-446.22804369,0.00027945,10]
[377004302,1754201439695,-460.0,0.00027945,10]
[377004303,1754201439704,-460.0,0.00027945,10]
[377004304,1754201439714,-460.0,0.00027945,10]
[377004305,1754201439724,-465.49891065,0.00027945,10]
[377004306,1754201439733,-460.0,0.00027945,10]
[377004307,1754201439743,-460.0,0.00027945,10]
[377004308,1754201439752,-460.92699465,0.00027945,10]
[377004309,1754201439762,-450.0,0.00027945,10]
[377004310,1754201439772,-460.0,0.00027945,10]
[377004311,1754201439781,-462.63023242,0.00027945,10]
[377004312,1754201439791,-460.0,0.00027945,10]
[377004313,1754201439801,-460.0,0.00027945,10]
[377004314,1754201439810,-460.0,0.00027945,10]
[377004315,1754201439820,-460.0,0.00027945,10]
[377004316,1754201439829,-315.51057509,0.00027945,10]
[377004317,1754201439838,-460.0,0.00027945,10]
[377004318,1754201439848,-460.0,0.00027945,10]
[377004319,1754201439857,-460.0,0.00027945,10]
[377004320,1754201439866,-460.84634206,0.00027945,10]
[377004321,1754201439875,-460.0,0.00027945,10]
[377004322,1754201439885,-460.0,0.00027945,10]
[377004323,1754201439894,-460.0,0.00027945,10]
[377004324,1754201439903,-460.0,0.00027945,10]
[377004325,1754201439913,-460.0,0.00027945,10]
[377004326,1754201439922,-460.0,0.00027945,10]
[377004327,1754201439932,-464.98483122,0.00027945,10]
[377004328,1754201439941,-460.0,0.00027945,10]
[377004329,1754201439950,-460.0,0.00027945,10]
[377004330,1754201439960,-460.0,0.00027945,10]
[377004331,1754201439970,-460.0,0.00027945,10]
[377004332,1754201439979,-603.87961973,0.00027945,10]
[377004333,1754201439989,-464.77650386,0.00027945,10]
[377004334,1754201439998,-460.0,0.00027945,10]
[377004335,1754201440008,-460.0,0.00027945,10]
[377004336,1754201440018,-162.01459955,0.00027945,10]
[377004337,1754201440027,-462.87975586,0.00027945,10]
[377004338,1754201440037,-460.0,0.00027945,10]
[377004339,1754201440046,-460.0,0.00027945,10]
[377004340,1754201440056,-460.0,0.00027945,10]
[377004341,1754201440065,-460.0,0.00027945,10]
[377004342,1754201440075,-460.0,0.00027945,10]
[377004343,1754201440083,-460.0,0.00027945,10]
[377004344,1754201440093,-460.0,0.00027945,10]
[377004345,1754201440103,-460.0,0.00027945,10]
[377004346,1754201440112,-460.0,0.00027945,10]
[377004347,1754201440121,-466.68308452,0.00027945,10]
[377004348,1754201440131,-460.0,0.00027945,10]
[377004350,1754201440140,-460.0,0.00027945,10]
[377004352,1754201440150,-460.0,0.00027945,10]
[377004353,1754201440159,-460.0,0.00027945,10]
[377004355,1754201440168,-541.74207393,0.00027945,10]
[377004356,1754201440178,-460.0,0.00027945,10]
[377004357,1754201440187,-441.45185456,0.00027945,10]
[377004358,1754201440196,-460.0,0.00027945,10]
[377004360,1754201440205,-460.0,0.00027945,10]
[377004362,1754201440215,-482.08661652,0.00027945,10]
[377004363,1754201440224,-461.90704505,0.00027945,10]
[377004364,1754201440233,-460.0,0.00027945,10]
[377004366,1754201440242,-469.65363786,0.00027945,10]
[377004367,1754201440251,-461.98323769,0.00027945,10]
[377004369,1754201440261,-460.0,0.00027945,10]
[377004371,1754201440271,-460.0,0.00027945,10]
[377004373,1754201440280,-460.0,0.00027945,10]
[377004375,1754201440290,-466.25940488,0.00027945,10]
[377004377,1754201440299,-458.60289249,0.00027945,10]
[377004379,1754201440309,-227.01979477,0.00027945,10]
[377004381,1754201440318,-460.0,0.00027945,10]
[377004383,1754201440327,-460.0,0.00027945,10]
[377004385,1754201440336,-460.0,0.00027945,10]
[377004387,1754201440346,-185.97288349,0.00027945,10]
[377004389,1754201440355,-460.0,0.00027945,10]
[377004391,1754201440364,-460.0,0.00027945,10]
[377004393,1754201440374,-460.0,0.00027945,10]
[377004395,1754201440383,-460.0,0.00027945,10]
[377004397,1754201440392,-460.0,0.00027945,10]
[377004399,1754201440402,-460.0,0.00027945,10]
[377004401,1754201440411,-460.0,0.00027945,10]
[377004403,1754201440421,-472.02698212,0.00027945,10]
[377004405,1754201440430,-460.0,0.00027945,10]
[377004407,1754201440439,-465.27644128,0.00027945,10]
[377004409,1754201440449,-464.94132805,0.00027945,10]
[377004411,1754201440460,-460.0,0.00027945,10]
[377004413,1754201440469,-460.0,0.00027945,10]
[377004415,1754201440479,-460.0,0.00027945,10]
[377004417,1754201440488,-460.0,0.00027945,10]
[377004419,1754201440498,-460.0,0.00027945,10]
[377004421,1754201440508,-460.0,0.00027945,10]
[377004423,1754201440517,-460.0,0.00027945,10]
[377004425,1754201440526,-462.31938125,0.00027945,10]
[377004427,1754201440536,-465.1830048,0.00027945,10]
[377004429,1754201440545,-465.2413029,0.00027945,10]
[377004431,1754201440556,-460.0,0.00027945,10]
[377004433,1754201440565,-464.67020839,0.00027945,10]
[377004435,1754201440575,-460.0,0.00027945,10]
[377004437,1754201440591,-460.0,0.00027945,10]
[377004440,1754201440606,-460.0,0.00027945,10]
[377004442,1754201440619,-460.0,0.00027945,10]
[377004444,1754201440633,-460.0,0.00027945,10]
[377004447,1754201440644,-510.23773233,0.00027945,10]
[377004449,1754201440657,-465.65130225,0.00027945,10]
[377004451,1754201440672,-460.0,0.00027945,10]
[377004454,1754201440684,-460.0,0.00027945,10]
[377004456,1754201440698,-460.0,0.00027945,10]
[377004459,1754201440713,-460.0,0.00027945,10]
[377004461,1754201440726,-460.0,0.00027945,10]
[377004463,1754201440742,-460.0,0.00027945,10]
[377004466,1754201440755,-512.30704445,0.00027945,10]
[377004468,1754201440770,-234.59090207,0.00027945,10]
[377004471,1754201440783,-465.03404526,0.00027945,10]
[377004473,1754201440796,-460.0,0.00027945,10]
[377004475,1754201440808,-460.0,0.00027945,10]
[377004477,1754201440821,-460.0,0.00027945,10]
[377004480,1754201440833,-460.0,0.00027945,10]
[377004482,1754201440847,-460.0,0.00027945,10]
[377004485,1754201440860,-468.72522415,0.00027945,10]
[377004487,1754201440874,-460.0,0.00027945,10]
[377004489,1754201440885,-460.0,0.00027945,10]
[377004491,1754201440895,-460.0,0.00027945,10]
[377004494,1754201440909,-460.0,0.00027945,10]
[377004496,1754201440920,-460.0,0.00027945,10]
[377004498,1754201440933,-463.17266056,0.00027945,10]
[377004501,1754201440946,-460.0,0.00027945,10]
[377004503,1754201440960,-460.0,0.00027945,10]
[377004505,1754201440972,-460.0,0.00027945,10]
[377004508,1754201440985,-185.1556406,0.00027945,10]
[377004510,1754201440998,-460.0,0.00027945,10]
[377004513,1754201441016,-460.0,0.00027945,10]
[377004515,1754201441031,-460.0,0.00027945,10]
[377004517,1754201441042,-461.5433167,0.00027945,10]
[377004519,1754201441054,-460.0,0.00027945,10]
[377004521,1754201441064,-460.0,0.00027945,10]
[377004524,1754201441076,-460.0,0.00027945,10]
[377004526,1754201441089,-460.0,0.00027945,10]
[377004528,1754201441103,-500.0,0.00027945,10]
[377004531,1754201441118,-460.0,0.00027945,10]
[377004533,1754201441128,-472.66565008,0.00027945,10]
[377004535,1754201441141,-460.0,0.00027945,10]